[Event "Czech Open-GM 2022"]
[Site "Pardubice"]
[Date "2022.07.28"]
[Round "7.14"]
[White "Jurcik, Marian"]
[Black "Slovak, Kilian"]
[Result "1/2-1/2"]
[ECO "E61"]
[WhiteElo "2409"]
[BlackElo "2321"]
[Annotator "TA"]
[PlyCount "113"]
[EventDate "2022.07.22"]
[EventType "swiss"]
[EventCountry "CZE"]
[SourceTitle "playchess.com"]
[Source "ChessBase"]
[SourceQuality "1"]
[TimeControl "40/5400+30:1800+30"]

{[%evp 14,113,45,33,55,57,58,47,47,47,55,39,39,39,38,42,37,40,74,80,102,56,84,77,85,95,83,61,59,73,96,29,29,30,57,0,9,8,18,9,23,0,25,12,17,0,16,18,27,0,0,0,0,-20,-21,-33,-14,-18,-22,-135,0,-25,-9,-166,-181,-172,-171,-156,-179,-131,-4,-6,0,0,64,63,63,63,63,63,63,59,78,72,136,135,110,10,20,0,0,0,8,0,0,0,0,0,0,0,0,0]} 1. d4 {[%emt 0:00:04]} Nf6 {[%emt 0:18:07]} 2. c4 {[%emt 0:00:07]} g6 {[%emt 0:00:31]} 3. Nc3 {[%emt 0:01:33]} Bg7 {[%emt 0:00:05]} 4. g3 {[%emt 0:01:04]} O-O {[%emt 0:00:07]} 5. Bg2 {[%emt 0:00:20]} d6 {[%emt 0:00:07]} 6. Nf3 {[%emt 0:00:17]} c6 {[%emt 0:03:00]} 7. O-O {[%emt 0:01:34]} Qb6 {[%emt 0:00:07] 7...Bf5 is setting a new trend.} 8. b3 {[%emt 0:04:40]} Qa5 {[%emt 0:02:55] E62: King's Indian: Fianchetto: 6...c6 and Panno Variation (6...Nc6) without ...a6.} 9. Qd2 {[%emt 0:04:05]} Qh5 {[%emt 0:00:44]} 10. Qg5 {[%emt 0:03:15]} Qxg5 {[%emt 0:00:43] White is slightly better.} 11. Bxg5 {[%emt 0:00:35]} Nbd7 {[%emt 0:06:50] [#]} 12. h3 $146 {[%emt 0:13:17]} ({Predecessor:} 12. Rad1 Re8 13. e4 h6 14. Bc1 a6 15. h3 Rb8 16. e5 dxe5 17. dxe5 Nh7 18. e6 fxe6 {0-1 (58) Grigoryan,K (2586)-Babujian,L (2471) Yerevan 2014}) 12... Re8 {[%emt 0:01:26]} 13. e4 {[%emt 0:05:55]} e5 {[%emt 0:03:23]} 14. d5 {[%emt 0:00:54]} Nc5 {[%emt 0:10:19]} 15. Nd2 {[%emt 0:00:48]} Nh5 {[%emt 0:15:30]} 16. Rfd1 {[%emt 0:16:41]} Bd7 {[%emt 0:04:16]} 17. Nf1 {[%emt 0:01:52]} (17. b4 $16 Na6 18. dxc6 bxc6 19. a3) 17... cxd5 {[%emt 0:01:14]} 18. Nxd5 {[%emt 0:02:23]} Ne6 {[%emt 0:00:12] Prevents Nc7.} 19. Be7 {[%emt 0:08:02]} Bf8 {[%emt 0:00:44]} 20. Bxf8 {[%emt 0:00:41] White is more active.} Kxf8 {[%emt 0:00:16]} 21. Bf3 {[%emt 0:00:29]} Bc6 {[%emt 0:10:28]} 22. Nfe3 {[%emt 0:05:29]} (22. Bxh5 $16 {Bg4 is the strong threat.} gxh5 23. Nfe3) 22... Nhg7 $1 $11 {[%emt 0:01:28]} 23. Nf6 {[%emt 0:07:06][%csl LRd6,LRe8,LRh7]} Red8 {[%emt 0:00:11]} 24. h4 {[%emt 0:12:27]} (24. Nxh7+ $14 Ke7 25. Nd5+ Bxd5 26. exd5 (26. cxd5 Nd4 $15) (26. Rxd5 $2 Rh8 $19)) 24... h6 {[%emt 0:01:02]} 25. Nc2 {[%emt 0:02:51]} Ne8 {[%emt 0:00:42]} 26. Nd5 {[%emt 0:00:40]} a5 {[%emt 0:02:31]} 27. Bg2 {[%emt 0:04:29]} N8c7 {[%emt 0:01:15]} (27... Bxd5 $5 28. cxd5 (28. exd5 Nc5 $11) 28... Nc5 $11) 28. Nxc7 {[%emt 0:00:49]} Nxc7 {[%emt 0:00:01]} 29. Rd2 {[%emt 0:00:50]} Ke7 {[%emt 0:01:28]} 30. h5 {[%emt 0:00:41]} Ne6 {[%emt 0:01:22]} 31. hxg6 {[%emt 0:00:02]} fxg6 {[%emt 0:00:04]} 32. Rad1 {[%emt 0:01:39]} Rf8 {[%emt 0:05:12]} 33. f3 {[%emt 0:00:46]} Rad8 {[%emt 0:00:20]} 34. Re1 {[%emt 0:00:18]} Ng5 {[%emt 0:00:55]} 35. Rd3 {[%emt 0:00:38]} Rf6 {[%emt 0:00:37]} 36. f4 {[%emt 0:00:35]} (36. Rf1 $11) 36... Ne6 {[%emt 0:04:40]} (36... exf4 $17 {Threatens to win with ...f3.} 37. gxf4 Rxf4) 37. fxe5 {[%emt 0:00:30]} dxe5 {[%emt 0:00:01]} 38. Rd5 {[%emt 0:00:26]} Bxd5 $19 {[%emt 0:02:10]} 39. exd5 {[%emt 0:00:01]} Nc5 {[%emt 0:00:08]} 40. Rxe5+ {[%emt 0:00:16]} Kd6 {[%emt 0:00:05]} 41. Re3 {[%emt 0:02:53] [#]} Rd7 {[%emt 0:04:14]} (41... Rdf8 $1 $17 {And now ...Rf2 would win.} 42. Nd4 Rf2) 42. a3 $1 $11 {[%emt 0:02:57] Hoping for b4.} b6 {[%emt 0:04:52]} 43. b4 {[%emt 0:06:36]} Na4 {[%emt 0:06:55]} (43... Na6 $11) 44. Nd4 $14 {[%emt 0:03:24][%cal Rd4b5][%mdl 1024] White has compensation.} Re7 {[%emt 0:01:53]} 45. Nb5+ {[%emt 0:01:57]} Kd7 {[%emt 0:00:06]} 46. Bh3+ {[%emt 0:00:39]} Kd8 {[%emt 0:00:12]} 47. Be6 {[%emt 0:00:41]} h5 {[%emt 0:02:40]} 48. Kg2 {[%emt 0:00:30]} h4 {[%emt 0:01:36]} ({Black should try} 48... g5) 49. gxh4 $16 {[%emt 0:09:39]} Rf4 {[%emt 0:01:42] Inhibits Nd4.} 50. Nd6 {[%emt 0:00:55]} (50. c5 $16 bxc5 51. bxa5 (51. Kg3 Rf5 $11)) 50... Rxh4 $11 {[%emt 0:00:49] The position is equal.} 51. Nf7+ {[%emt 0:05:04]} Rxf7 $1 {[%emt 0:01:07]} 52. Bxf7 {[%emt 0:00:02] [#] aiming for d6.} Rxc4 {[%emt 0:00:08]} 53. bxa5 {[%emt 0:00:48]} bxa5 {[%emt 0:00:13]} 54. Bxg6 {[%emt 0:00:45] KRB-KRN} Rg4+ {[%emt 0:00:23]} 55. Rg3 {[%emt 0:00:04]} Rxg3+ {[%emt 0:00:08]} 56. Kxg3 {[%emt 0:00:07]} Nc3 {[%emt 0:00:15]} 57. Kf4 {[%emt 0:01:28] Weighted Error Value: White=0.23 (precise) /Black=0.17 (very precise)} 1/2-1/2

[Event "Czech Open-GM 2022"]
[Site "Pardubice"]
[Date "2022.07.28"]
[Round "7.15"]
[White "Hollan, Martin"]
[Black "Strebkovs, Andrejs"]
[Result "1/2-1/2"]
[ECO "C00"]
[WhiteElo "2399"]
[BlackElo "2283"]
[Annotator "TA"]
[PlyCount "102"]
[EventDate "2022.07.22"]
[EventType "swiss"]
[EventCountry "CZE"]
[SourceTitle "playchess.com"]
[Source "ChessBase"]
[SourceQuality "1"]
[TimeControl "40/5400+30:1800+30"]

{[%evp 19,102,30,34,29,29,26,33,35,34,42,29,0,25,35,29,-10,0,-6,-9,0,0,-30,10,-26,-29,-43,-57,-53,-41,-26,-28,-95,-90,-139,-52,-43,-37,-27,-12,-8,-14,0,0,0,0,-30,-29,-64,0,0,0,0,0,0,0,0,0,0,0,0,0,0,0,0,0,0,0,0,6,0,0,0,0,0,0,0,0,0,0,0,0,0,0,0,0]} 1. e4 {[%emt 0:00:06]} e6 {[%emt 0:01:20]} 2. d4 {[%emt 0:01:07]} d5 {[%emt 0:00:05]} 3. Bd3 {[%emt 0:00:08]} c5 {[%emt 0:06:35]} 4. exd5 {[%emt 0:00:15]} exd5 {[%emt 0:01:56]} 5. Nf3 {[%emt 0:01:19]} c4 {[%emt 0:02:18]} 6. Be2 {[%emt 0:00:06]} Nc6 {[%emt 0:00:39]} 7. O-O {[%emt 0:00:24]} Bd6 {[%emt 0:01:27]} 8. b3 {[%emt 0:00:08]} cxb3 {[%emt 0:00:38]} 9. axb3 {[%emt 0:00:07]} Nge7 {[%emt 0:00:46]} 10. c4 {[%emt 0:00:28]} O-O {[%emt 0:02:47]} 11. c5 {[%emt 0:13:31] B22: Sicilian: 2 c3.} Bc7 {[%emt 0:02:24]} 12. Nc3 {[%emt 0:02:39]} Bg4 {[%emt 0:04:29]} 13. h3 {[%emt 0:01:37] White is slightly better.} Bh5 {[%emt 0:02:40]} 14. Nb5 {[%emt 0:03:56] [#]} Bb8 $146 {[%emt 0:06:36]} ({Predecessor:} 14... a6 15. Nxc7 Qxc7 16. g3 Qd7 17. g4 Bg6 18. Bf4 h5 19. Ne5 Nxe5 20. Bxe5 hxg4 21. Bxg4 {0-1 (33) Suarez Gomez,J (2448)-Gleizerov,E (2504) Pontevedra 2016}) 15. Ba3 {[%emt 0:03:59]} Nc8 {[%emt 0:03:04]} 16. Qd2 {[%emt 0:27:07]} Qf6 {[%emt 0:06:10]} 17. Rae1 {[%emt 0:04:54][%cal Of3e5]} Bf4 {[%emt 0:03:54]} 18. Qd1 {[%emt 0:02:35][%cal Of3e5]} a6 $1 {[%emt 0:08:37]} 19. Nc3 {[%emt 0:00:59]} N8e7 {[%emt 0:04:20]} 20. Bb2 {[%emt 0:08:17][%cal Of3e5]} Rfe8 {[%emt 0:06:42]} 21. Na4 {[%emt 0:03:57]} (21. Ne5 $5 {[%cal Re2h5]} Nxd4 22. Nd3 $11) 21... Rad8 {[%emt 0:05:32]} 22. Ne5 {[%emt 0:03:29]} Bxe2 {[%emt 0:01:47]} 23. Qxe2 {[%emt 0:00:08]} Bxe5 {[%emt 0:01:46]} (23... Nxe5 {is interesting.} 24. dxe5 Qf5 25. e6 Nc6) 24. dxe5 {[%emt 0:00:08]} Qe6 {[%emt 0:00:37]} (24... Qf4 {feels hotter.} 25. e6 Ng6 26. Bc1 Qf5) 25. Qd3 {[%emt 0:01:40]} (25. Nb6 $11) 25... d4 $17 {[%emt 0:01:58]} 26. Nb6 {[%emt 0:07:49]} (26. Re4 $142) 26... Nb4 {[%emt 0:04:57] Pair of Knights!} (26... Nxe5 $17 27. Qc2 Qf5 28. Qxf5 Nxf5) 27. Qc4 $15 {[%emt 0:00:43]} Qxc4 {[%emt 0:01:35]} 28. Nxc4 {[%emt 0:00:05]} Nd3 {[%emt 0:01:53]} 29. Rd1 {[%emt 0:00:19]} Nxb2 {[%emt 0:03:51]} ({Don't play} 29... Nxc5 30. Nd6 $16) 30. Nxb2 {[%emt 0:00:06]} Nc6 {[%emt 0:00:12]} 31. f4 {[%emt 0:00:37]} f6 {[%emt 0:00:59]} 32. Nc4 {[%emt 0:03:10][%cal Bb2c4,Bc4d6,Bd6f5][%mdl 32]} fxe5 {[%emt 0:02:46] [#] And now ...e4 would win.} 33. fxe5 {[%emt 0:03:39]} Nxe5 {[%emt 0:03:44]} (33... Rd5 $15 34. b4 Re7) 34. Nd6 $11 {[%emt 0:00:09] The position is equal.} Re7 {[%emt 0:03:48]} 35. Rxd4 {[%emt 0:00:16]} Nf7 {[%emt 0:01:24]} 36. Nf5 {[%emt 0:05:20]} Rxd4 {[%emt 0:00:52]} 37. Nxe7+ {[%emt 0:00:10][%mdl 4096] Endgame KRN-KRN} Kf8 {[%emt 0:00:05]} 38. Nf5 {[%emt 0:00:35]} Rd7 {[%emt 0:00:28]} 39. b4 {[%emt 0:01:36]} Kg8 {[%emt 0:01:24]} 40. Re1 {[%emt 0:01:45][%cal Re1e8] [#]} Kf8 {[%emt 0:01:35] Prevents Re8+.} 41. Rf1 {[%emt 0:08:13]} Kg8 {[%emt 0:00:16]} 42. Rf4 {[%emt 0:06:55]} g6 {[%emt 0:02:10]} 43. Nd4 {[%emt 0:00:46]} Re7 {[%emt 0:03:32]} 44. c6 {[%emt 0:01:30]} bxc6 {[%emt 0:03:44]} 45. Nxc6 {[%emt 0:00:06]} Rb7 {[%emt 0:01:37]} 46. Rd4 {[%emt 0:01:13]} Kg7 {[%emt 0:01:55]} 47. Kf2 {[%emt 0:00:19]} Rb6 {[%emt 0:01:25]} 48. Na5 {[%emt 0:00:21]} Nd6 {[%emt 0:01:40]} 49. Nc4 {[%emt 0:02:00]} Rxb4 {[%emt 0:00:34]} 50. Rxd6 {[%emt 0:00:06] Threatens to win with Rd7+.} Rxc4 {[%emt 0:00:05]} 51. Rxa6 {[%emt 0:00:04]} Rc2+ {[%emt 0:00:10] Weighted Error Value: White=0.13 (very precise) /Black=0.06 (flawless)} 1/2-1/2

[Event "Czech Open-GM 2022"]
[Site "Pardubice"]
[Date "2022.07.28"]
[Round "7.16"]
[White "Klabis, Rokas"]
[Black "Frank, Adam"]
[Result "1-0"]
[ECO "B53"]
[WhiteElo "2382"]
[BlackElo "2313"]
[Annotator "TA"]
[PlyCount "83"]
[EventDate "2022.07.22"]
[EventType "swiss"]
[EventCountry "CZE"]
[SourceTitle "playchess.com"]
[Source "ChessBase"]
[SourceQuality "1"]
[TimeControl "40/5400+30:1800+30"]

{[%evp 9,83,21,13,7,30,28,21,6,14,0,0,14,18,18,26,23,10,0,0,-4,0,-27,-22,-15,-7,-52,0,-29,0,-12,10,-18,0,-19,-10,-12,0,0,0,0,101,99,86,96,95,93,91,89,94,97,106,103,106,106,111,111,106,117,141,130,215,213,328,321,583,560,568,553,504,374,670,660,718,715,1551,1577]} 1. e4 c5 2. Nf3 d6 3. d4 cxd4 4. Qxd4 Nf6 5. Nc3 Nc6 6. Qe3 {B53: Sicilian: 2...d6: Lines with Qxd4.} e5 7. Bc4 {aiming for Ng5.} Be7 8. h3 {[#] The position is equal.} Be6 $146 ({Predecessor:} 8... O-O 9. Bd2 a6 10. O-O-O Qc7 11. Bd3 b5 12. Nd5 Nxd5 13. exd5 Na5 14. Ng5 f5 {0-1 (28) Heiser,J (659)-Raines,D (1153) LSS email 2015}) 9. Nd5 O-O 10. O-O Rc8 11. Nxf6+ Bxf6 12. Bxe6 fxe6 {[%cal Bf7e6,Be6d5,Bd5d4][%mdl 32]} 13. Qb3 d5 14. exd5 Na5 15. Qb5 a6 16. Qe2 exd5 17. Rd1 Nc6 (17... e4 $15 18. Nh2 Nc4) 18. c3 Kh8 19. Nh2 d4 20. Ng4 Qd5 21. b3 {[%cal Bb2b3,Bb3b4][%mdl 32]} Be7 22. Bb2 Bc5 23. b4 Bd6 {[%cal Bc5d6,Bd6b8,Bb8f4][%mdl 32]} 24. a3 Qf7 (24... Rce8 $11 {remains equal.}) 25. cxd4 $16 {Black is now going downhill.} exd4 26. Bxd4 Nxd4 27. Rxd4 Bb8 28. Rad1 Rce8 29. Qd2 Bf4 30. Qd3 h5 31. Rd7 Qf5 32. Qxf5 (32. Qd4 {with more complications.} Qg5 33. Nh2 Be5 34. Qd5) 32... Rxf5 33. Nh2 Bxh2+ 34. Kxh2 Rxf2 {[%mdl 4096] Endgame KRR-KRR} (34... Re2 $16) 35. R1d5 $18 (35. Rxb7 Ree2 $14) 35... Ree2 {[#]} (35... Re3 $142 36. a4 (36. Rxh5+ Kg8 $16) (36. Rxb7 Rxa3 37. Rg5 Ra4 $16) 36... b6 37. Rxh5+ Kg8) 36. Rg5 $1 ({Not} 36. Rxh5+ Kg8 $16) 36... Kg8 $2 (36... Re3 {was necessary.} 37. Rxb7 Rxa3 38. Rgxg7 (38. Rxh5+ Kg8 $16) (38. Rbxg7 Rf5 $18) 38... Re3 39. Rh7+ Kg8 40. Rxh5 Re6 41. Rg5+ Kh8) 37. Rdxg7+ Kf8 38. Rxb7 Ra2 39. a4 {[%cal Ba3a4,Ba4a5][%mdl 32]} h4 $2 {[#]} (39... Rxa4 40. Rxh5 Kg8) 40. a5 {White is clearly winning.} Rf4 41. Rg6 Ra1 42. Rxa6 {Weighted Error Value: White=0.10 (very precise) /Black=0.36} 1-0

[Event "Czech Open-GM 2022"]
[Site "Pardubice"]
[Date "2022.07.28"]
[Round "7.17"]
[White "Niedbala, Bartlomiej"]
[Black "Crevatin, Leo"]
[Result "1/2-1/2"]
[ECO "B12"]
[WhiteElo "2381"]
[BlackElo "2259"]
[Annotator "TA"]
[PlyCount "61"]
[EventDate "2022.07.22"]
[EventType "swiss"]
[EventCountry "CZE"]
[SourceTitle "playchess.com"]
[Source "ChessBase"]
[SourceQuality "1"]
[TimeControl "40/5400+30:1800+30"]

{[%evp 10,61,38,20,34,22,22,22,34,-13,-3,-15,-7,-68,-66,-64,-67,-69,-46,-56,-28,-24,-8,-13,-8,-13,-8,-12,-6,-18,0,0,0,0,0,0,0,0,0,0,0,0,0,0,0,0,0,0,0,0,0,0,0,0]} 1. e4 c6 2. d4 d5 3. e5 Bf5 4. Nf3 e6 5. Be2 Ne7 6. O-O Ng6 {6...h6 is becoming the main line. B12: Caro-Kann: Advance Variation.} 7. Be3 Nd7 8. Ne1 {And now g4 would win.} h5 9. Nd2 {[#]} (9. c3 $14) 9... Ndxe5 $1 $11 10. dxe5 d4 11. Bxd4 Qxd4 $15 {[#]} 12. Ndf3 $146 ({Predecessor:} 12. Nc4 Qxd1 13. Rxd1 b5 14. Ne3 Be4 15. Bd3 Bxd3 16. Nxd3 O-O-O 17. f4 Be7 18. f5 {1-0 (32) Alekseenko,K (2594)-Lalith,B (2542) Chess.com INT 2018}) 12... Qxd1 ({Reject} 12... Qxb2 13. Rb1 Qxa2 14. Rxb7) 13. Rxd1 Bc5 {Against Rd4} 14. Bd3 Rd8 15. Rd2 Nf4 16. Bxf5 {The position is equal.} Rxd2 17. Nxd2 {[#] Threatens to win with Be4.} exf5 18. g3 Ne6 19. Nd3 Be7 20. h4 O-O 21. f4 Rd8 22. Nf3 c5 23. Nf2 c4 24. Rd1 b5 25. Kf1 Kf8 26. Ke2 g6 27. Rxd8+ Bxd8 28. Nd1 Bb6 29. Nc3 Nc7 30. a4 a6 31. axb5 {Weighted Error Value: White=0.08 (flawless) /Black=0.04 (flawless)} 1/2-1/2

[Event "Czech Open-GM 2022"]
[Site "Pardubice"]
[Date "2022.07.28"]
[Round "7.18"]
[White "Sorensen, Hampus"]
[Black "Koziorowicz, Michal"]
[Result "1/2-1/2"]
[ECO "E71"]
[WhiteElo "2376"]
[BlackElo "2231"]
[Annotator "TA"]
[PlyCount "84"]
[EventDate "2022.07.22"]
[EventType "swiss"]
[EventCountry "CZE"]
[SourceTitle "playchess.com"]
[Source "ChessBase"]
[SourceQuality "1"]
[TimeControl "40/5400+30:1800+30"]

{[%evp 13,84,31,40,43,47,44,57,49,48,51,47,54,45,53,47,45,47,41,55,48,96,79,100,80,83,84,94,99,66,55,47,65,61,0,74,65,57,0,56,66,64,58,58,39,48,55,97,80,91,0,0,0,0,7,7,1,26,0,0,0,0,0,0,0,0,0,0,0,0,0,0,0,0]} 1. d4 {[%emt 0:00:03]} Nf6 {[%emt 0:01:30]} 2. c4 {[%emt 0:00:22]} g6 {[%emt 0:00:34]} 3. Nc3 {[%emt 0:00:18]} Bg7 {[%emt 0:00:08]} 4. e4 {[%emt 0:00:23]} d6 {[%emt 0:00:23]} 5. h3 {[%emt 0:00:20]} O-O {[%emt 0:01:09]} 6. Be3 {[%emt 0:00:11]} e5 {[%emt 0:01:02]} 7. d5 {[%emt 0:00:16]} a5 {[%emt 0:00:04]} 8. g4 {[%emt 0:00:50] E71: King's Indian: 4 e4 d6 5 h3.} Na6 {[%emt 0:00:31]} 9. Nge2 {[%emt 0:00:23]} Nd7 {[%emt 0:00:34]} 10. h4 {[%emt 0:00:30] White is slightly better.} Ndc5 {[%emt 0:01:26]} 11. Ng3 {[%emt 0:23:15]} c6 {[%emt 0:01:40]} 12. Be2 {[%emt 0:00:53]} cxd5 {[%emt 0:02:02]} 13. cxd5 {[%emt 0:02:32]} Bd7 {[%emt 0:00:47]} 14. Qd2 {[%emt 0:04:09]} Nc7 {[%emt 0:04:38] [#]} 15. Rc1 $146 {[%emt 0:11:14]} ({Predecessor:} 15. h5 b5 16. f3 b4 17. Nd1 Nb5 18. Bh6 Qe7 19. Bxg7 Kxg7 20. Bxb5 Bxb5 21. Ne3 {1-0 (48) Barski,R (2444)-Mondrzycki,B (2140) Wroclaw 2020}) 15... b5 {[%emt 0:13:03]} 16. Nd1 $1 {[%emt 0:01:42]} N7a6 {[%emt 0:04:29]} (16... b4 $14 {feels stronger.}) 17. Kf1 {[%emt 0:05:42]} Rc8 {[%emt 0:02:54]} 18. f3 {[%emt 0:01:37]} Nb4 {[%emt 0:08:37]} 19. b3 {[%emt 0:00:12]} f5 {[%emt 0:02:11] ...fxe4 is the strong threat.} 20. gxf5 {[%emt 0:14:02]} gxf5 {[%emt 0:01:13]} 21. exf5 {[%emt 0:00:41]} Bxf5 {[%emt 0:07:30]} 22. Nf2 {[%emt 0:00:09] Prevents Bd3.} e4 {[%emt 0:16:10]} 23. Bxb5 {[%emt 0:11:34]} (23. Nxf5 $14 Rxf5 24. Rxc5 $1 (24. Bxc5 Rxc5 25. Rxc5 dxc5 $11) 24... Rxc5 25. Bxc5 dxc5 26. fxe4) 23... Nbd3 {[%emt 0:13:32]} ({Resist} 23... exf3 24. Bc4 $16) (23... Bd7 $11 {remains equal.} 24. Bxd7 Qxd7 25. fxe4 Nbd3) 24. Bxd3 {[%emt 0:07:10]} (24. Bg5 {with more complications.} Qc7 25. Nxd3 Qb7 26. Nxc5 Qxb5+ 27. Qe2) 24... Nxd3 {[%emt 0:04:53]} 25. Rxc8 {[%emt 0:00:10]} (25. Nxd3 $14 exd3 26. Nxf5 Rxc1+ 27. Qxc1 Rxf5 28. f4) 25... Bxc8 {[%emt 0:00:21]} (25... Qxc8 $11 26. Ngxe4 Bxe4 27. fxe4 Nxf2 28. Bxf2 Qg4) 26. Ngxe4 $14 {[%emt 0:04:35]} Nxf2 {[%emt 0:03:10]} 27. Kxf2 {[%emt 0:01:57]} Bg4 {[%emt 0:02:49]} 28. f4 {[%emt 0:00:06]} (28. Bf4 $5 {[%cal Rd2e3]}) 28... Qe7 {[%emt 0:00:18]} 29. Ng5 {[%emt 0:03:23] Black must now prevent Rg1.} Bf6 {[%emt 0:01:32] A strong pair of Bishops.} 30. Rg1 {[%emt 0:00:47]} h5 {[%emt 0:00:03][%cal Bh7h5,Bh5h4][%mdl 32]} 31. Kg3 {[%emt 0:04:39]} (31. Qd3 $16) 31... Bxg5 $11 {[%emt 0:02:50][%mdl 64] Remove Defender} 32. hxg5 {[%emt 0:00:00] Black should prevent Qd4.} Qe4 $36 {[%emt 0:00:06][%mdl 2048] Black fights for an advantage.} 33. Rf1 {[%emt 0:00:24] Against Qf3+} Re8 {[%emt 0:00:42]} 34. Bb6 {[%emt 0:01:16]} Bd7 {[%emt 0:01:01]} (34... Rc8 $5 {[%cal Rc8c2]} 35. Qe3 (35. Bxa5 $2 Rc2 $19) 35... Qxe3+ 36. Bxe3 Rc3 $11) 35. Qd1 {[%emt 0:01:06]} (35. Bxa5 $2 Qf5 36. Kf2 Qh3 $19) (35. Qxa5 Qd3+ 36. Rf3 h4+ 37. Kg2 h3+ 38. Kg3 Qe2 39. Bf2 Qf1 40. f5 Qg2+ 41. Kf4 {[#]} Bxf5 $1 {[%mdl 512]} 42. Bg3 Re4+ 43. Kxf5 Qxf3+) 35... h4+ {[%emt 0:02:58] The position is equal.} 36. Kh2 $1 {[%emt 0:00:00]} Rc8 {[%emt 0:00:15]} 37. Qf3 {[%emt 0:01:06] Against Rc3} Rc2+ {[%emt 0:00:08]} 38. Kg1 {[%emt 0:00:31]} Bf5 {[%emt 0:00:45]} 39. Qxe4 {[%emt 0:00:49]} (39. Bxa5 Qd4+ 40. Qf2 Rxf2 41. Rxf2 Qd1+ 42. Rf1 Qg4+ 43. Kf2 Bd3 44. Ke3 Bxf1 45. Kd2 Qxf4+ 46. Kc3 Qc1+ 47. Kd4 Qc2 48. Ke3 Qd3+ 49. Kf4 Be2 50. g6 Qg3+ 51. Kf5 Qe5#) 39... Bxe4 {[%emt 0:00:01]} 40. Rf2 {[%emt 0:00:20] Against Rg2+. Threatens to win with Rxc2.} Rc1+ {[%emt 0:00:01]} 41. Rf1 {[%emt 0:30:21]} Rc2 {[%emt 0:30:02] ( -> ...Rg2+)} 42. Rf2 {[%emt 0:00:00] Prevents Rg2+. aiming for Rxc2.} Rc1+ {[%emt 0:00:00] Weighted Error Value: White=0.12 (very precise) /Black=0.12 (very precise)} 1/2-1/2

[Event "Czech Open-GM 2022"]
[Site "Pardubice"]
[Date "2022.07.28"]
[Round "7.19"]
[White "Gombocz, Ferenc Jr."]
[Black "Kusa, Jakub"]
[Result "1/2-1/2"]
[ECO "A13"]
[WhiteElo "2229"]
[BlackElo "2353"]
[Annotator "TA"]
[PlyCount "48"]
[EventDate "2022.07.22"]
[EventType "swiss"]
[EventCountry "CZE"]
[SourceTitle "playchess.com"]
[Source "ChessBase"]
[SourceQuality "1"]
[TimeControl "40/5400+30:1800+30"]

{[%evp 9,48,20,32,17,16,0,0,5,5,-10,-14,-18,-12,-20,-8,-33,-31,-32,-16,-17,-13,-16,-11,-14,-14,-16,-14,-18,-14,-31,0,0,2,8,10,0,0,0,39,35,41]} 1. c4 {[%emt 0:00:08]} e6 {[%emt 0:00:19]} 2. g3 {[%emt 0:00:16]} d5 {[%emt 0:00:27]} 3. Bg2 {[%emt 0:00:18]} Nf6 {[%emt 0:00:27]} 4. Nf3 {[%emt 0:00:12]} dxc4 {[%emt 0:00:37]} 5. Qa4+ {[%emt 0:00:38]} Bd7 {[%emt 0:00:42]} 6. Qxc4 {[%emt 0:00:21] A13: English Opening: 1...e6.} c5 {[%emt 0:00:18]} 7. Ne5 {[%emt 0:01:46]} Qc8 {[%emt 0:00:41]} 8. O-O {[%emt 0:10:43] The position is equal.} Nc6 {[%emt 0:02:59] Prevents d4.} 9. Nxc6 {[%emt 0:12:46]} Bxc6 {[%emt 0:00:08]} 10. Nc3 {[%emt 0:02:20]} Be7 {[%emt 0:03:08]} 11. Bxc6+ {[%emt 0:05:47]} Qxc6 {[%emt 0:00:08]} 12. Qb5 {[%emt 0:00:41]} (12. a4 {looks sharper.} O-O 13. d3 Rfd8 14. a5) 12... Qxb5 {[%emt 0:07:07]} 13. Nxb5 {[%emt 0:00:07] [#] aiming for Nc7+.} O-O {[%emt 0:00:24]} 14. d3 {[%emt 0:01:30] [#]} Nd5 $146 {[%emt 0:05:04]} ({Predecessor:} 14... a6 15. Nc3 Rac8 16. b3 b5 17. Bb2 c4 18. dxc4 bxc4 19. Rfc1 Rfd8 20. Nd1 Nd5 21. Kg2 cxb3 22. axb3 Rb8 23. Rxa6 Rxb3 24. Ra7 h6 {½-½ (24) Koehler,J (2096)-Willmann,B (2268) LSS email 2015}) 15. Bd2 {[%emt 0:06:14]} Rfd8 {[%emt 0:03:32]} 16. Rfd1 {[%emt 0:03:48]} a6 {[%emt 0:03:33]} 17. Nc3 {[%emt 0:02:35]} Rac8 {[%emt 0:02:02]} 18. Rac1 {[%emt 0:05:58]} b5 {[%emt 0:05:57]} 19. a4 {[%emt 0:08:14]} Nxc3 {[%emt 0:19:19]} (19... b4 $5 {[%cal Rb4c3]} 20. Nxd5 exd5 $15) 20. Bxc3 {[%emt 0:01:20]} c4 {[%emt 0:02:56]} 21. axb5 {[%emt 0:02:33]} axb5 {[%emt 0:00:28]} 22. dxc4 {[%emt 0:00:24]} Rxd1+ {[%emt 0:00:49]} 23. Rxd1 {[%emt 0:00:06]} bxc4 {[%emt 0:09:15]} 24. Rd7 {[%emt 0:01:41]} Bf6 {[%emt 0:01:15] Weighted Error Value: White=0.07 (flawless) /Black=0.05 (flawless)} 1/2-1/2